Cogmind - Beta 13 @@@ ROGUE MODE // 2024.04.17 @ 17:29:15 Player: Gold Spoon Result: Self-destructed Performance ------------- Evolutions (1) 500 Regions Visited (2) 400 Robots Destroyed (41) 205 Value Destroyed (943) 943 Prototype IDs (0) 0 Alien Tech Used (0) 0 Bonus (72) 72 TOTAL SCORE: 2120 Bonus ------- High Alert Combat Kills 72 Cogmind --------- Core Integrity 136/400 Matter 300/300 Energy 100/100 System Corruption 0% Temperature Warm (150) Movement Core (100) Ox1 Location -9/Materials Parts ------- > --- POWER (1) -------- (None) > --- PROPULSION (2) --- (None) > --- UTILITY (3) ------ Small Storage Unit Signal Interpreter > --- WEAPON (3) ------- (None) > --- INVENTORY (8) ---- Improved Ion Engine Cooling System ECM Suite Particle Cannon Grenade Launcher Peak State ------------ > --- POWER ------------ Improved Ion Engine > --- PROPULSION ------- Wheel Compact Wheel > --- UTILITY ---------- Cooling System Small Storage Unit Signal Interpreter > --- WEAPON ----------- Particle Cannon Particle Cannon Particle Cannon > --- INVENTORY -------- Ion Engine Cooling System ECM Suite Particle Cannon Grenade Launcher [Rating: 14] Favorites ----------- Power Reinforced Ion Engine Engine Reinforced Ion Engine Propulsion Compact Wheel Wheel Compact Wheel Utility Small Storage Unit Device Heat Sink Storage Small Storage Unit Processor Signal Interpreter Weapon Particle Cannon Energy Cannon Particle Cannon Ballistic Gun Light Assault Rifle Launcher Grenade Launcher Build | -11 -10 -9 ------- Run | Yrd Mat Mat Slots Evolved 2 | . . 2 Power . | . . . Propulsion . | . . . Utility 1 | . . 1 Weapon 1 | . . 1 Parts Attached 23 | 5 7 11 Power 6 | 1 2 3 Engine 6 | 1 2 3 Core . | . . . Reactor . | . . . Propulsion 4 | 2 1 1 Treads . | . . . Leg . | . . . Wheel 4 | 2 1 1 Hover . | . . . Flight . | . . . Utility 4 | 1 1 2 Device 2 | . 1 1 Storage 1 | 1 . . Processor 1 | . . 1 Hackware . | . . . Protection . | . . . Artifact . | . . . Weapon 9 | 1 3 5 Energy Gun . | . . . Energy Cannon 5 | . 2 3 Ballistic Gun 1 | 1 . . Ballistic Cannon . | . . . Launcher 3 | . 1 2 Special Weapon . | . . . Impact Weapon . | . . . Slashing Weapon . | . . . Piercing Weapon . | . . . Special Melee Weapon . | . . . Unidentified Prototypes . | . . . Parts Lost 10 | . 1 9 Power 2 | . 1 1 Propulsion 3 | . . 3 Utility 2 | . . 2 Weapon 3 | . . 3 Highest Loss Streak 5 | . 1 5 To Critical Strikes . | . . . Average Slot Usage (%) 91 | . 92 90 Engine 11 | . 13 11 Wheel 23 | . 28 20 Device 9 | . 9 9 Storage 12 | . 14 11 Processor 2 | . . 5 Energy Cannon 28 | . 23 31 Ballistic Gun 1 | . 2 . Naked Turns . | . . . Heaviest Build 28 | 9 24 28 Greatest Support 32 | 26 32 32 Greatest Overweight (x) 1 | . . 1 Average Overweight (x) . | . . . Largest Inventory Capacity 8 | 8 8 8 Average Capacity 7 | 7 8 8 Most Carried 6 | 3 6 6 Average Carried 4 | 1 4 4 Final Capacity 8 | 8 8 8 Final Carried 6 | 1 6 5 Class Distribution -------------------- 51% | Gunner 48% | Mutant Dominant Class ---------------- Mutant | -10/Materials Gunner | -9/Materials Resources | -11 -10 -9 ----------- Run | Yrd Mat Mat Matter Collected 660 | 223 185 252 Remotely . | . . . Salvage Created 852 | . 377 475 Parts 78 | . 28 50 Haulers Intercepted 1 | . . 1 Recyclers Shooed . | . . . Parts Field Recycled . | . . . Retrieved Matter . | . . . Parts Self-Destructed . | . . . Prevented . | . . . Kills | -11 -10 -9 ------- Run | Yrd Mat Mat Combat Hostiles Destroyed 32 | . 12 20 Guns 1 | . 1 . Cannons 14 | . 5 9 AOE 16 | . 6 10 Classes Destroyed 9 | . 5 4 Builder 1 | . 1 . Hauler 1 | . . 1 Mechanic 1 | . . 1 Operator 2 | . 1 1 Watcher 4 | . 1 3 Swarmer 15 | . 3 12 Grunt 15 | . 9 6 Brawler 1 | . . 1 Sentry 1 | . . 1 Best Kill Streak 21 | . 9 21 Combat Bots Only 16 | . 7 16 Max Kills in Single Turn 4 | . 2 4 Gunslinging . | . . . Exploded 3 | . 2 3 Melee . | . . . Uniques/NPCs Destroyed . | . . . Combat | -11 -10 -9 -------- Run | Yrd Mat Mat Hostile Shots Fired 134 | . 32 102 Missed 40 | . 13 27 Damage Taken 1178 | . 276 902 Core 351 | . 87 264 Absorbed by Shields . | . . . Core Remaining (%) 82 | 100 65 . Volleys Fired 62 | . 28 34 Largest 3 | . 2 3 Hottest 204 | . 136 204 Shots Fired 121 | . 53 68 Gun 6 | . 6 . Cannon 99 | . 42 57 Launcher 16 | . 5 11 Special . | . . . Kinetic 6 | . 6 . Thermal 99 | . 42 57 Explosive 16 | . 5 11 Electromagnetic . | . . . Robot Hit Streak 8 | . 6 8 Robot Miss Streak 4 | . 4 3 Penetration Max . | . . . Secondary Targets . | . . . Shots Hit Robots 58 | . 27 31 Core Hits 47 | . 17 30 Critical Kills 1 | . . 1 Critical Parts Destroyed . | . . . Critical Strikes 1 | . . 1 Meltdown 1 | . . 1 Melee Attacks . | . . . Impact . | . . . Slashing . | . . . Piercing . | . . . Sneak Attacks . | . . . Combat Hostiles . | . . . Follow-up Attacks . | . . . Damage Inflicted 2421 | . 946 1475 Guns 31 | . 31 . Cannons 1042 | . 451 591 Explosions 1342 | . 458 884 Melee . | . . . Ramming 6 | . 6 . Kinetic 31 | . 31 . Thermal 1119 | . 528 591 Explosive 1265 | . 381 884 Electromagnetic . | . . . Impact . | . . . Slashing . | . . . Piercing . | . . . Highest Corruption . | . . . Average Corruption . | . . . Corruption Purged . | . . . Corruption Blocked . | . . . Overload Shots . | . . . Overflow Damage 14 | . 3 11 Projectiles . | . . . Explosions 14 | . 3 11 Melee . | . . . Knockbacks . | . . . Impact . | . . . Kinetic . | . . . Secondary . | . . . Self-Inflicted Damage 73 | . 63 10 Shots 4 | . 2 2 Rammed 2 | . 2 . Targets Rammed 2 | . 2 . Kicked . | . . . Crushed . | . . . Highest Temperature 551 | . 395 551 Average Temperature 189 | . 144 227 Received Heat Transfer 300 | . 111 189 Effects 14 | . 4 10 Shutdowns 5 | . 1 4 Energy Bleed 4 | . 1 3 Interference 1 | . 1 . Matter Decay 2 | . 1 1 Damage (minor) 2 | . . 2 Siege Activations . | . . . Robots Corrupted . | . . . Combat Hostiles . | . . . Parts Fried . | . . . Impact Corruptions . | . . . Robots Melted 1 | . . 1 Combat Hostiles 1 | . . 1 Parts Melted 5 | . 1 4 Heat Transferred 1898 | . 864 1034 Parts Sabotaged . | . . . Parts Stolen . | . . . Parts Stripped . | . . . Power Chain Reactions 4 | . . 4 Alert | -11 -10 -9 ------- Run | Yrd Mat Mat Peak Influence 692 | . 432 692 Initial 97 | . . 97 Average 338 | . 269 407 Maximum Alert Level 2 | . 2 2 Low Security (%) 25 | 100 12 30 Level 1 33 | . 75 6 Level 2 40 | . 12 62 Level 3 . | . . . Level 4 . | . . . Level 5 . | . . . High Security . | . . . Max Security . | . . . Squads Dispatched 5 | . 2 3 Investigation . | . . . Extermination . | . . . Reinforcement 4 | . 2 2 Assault 1 | . . 1 Garrison . | . . . Intercept . | . . . Searches Triggered . | . . . Construction Impeded 1 | . . 1 Haulers Reinforced . | . . . Active Scanning Responses . | . . . Cargo Convoy Interrupts . | . . . Stealth | -11 -10 -9 --------- Run | Yrd Mat Mat Distress Signals 2 | . . 2 Communications Jammed . | . . . Distress Signals . | . . . Times Spotted 54 | . 18 36 Peak Tracking Total 11 | . 6 11 Tactical Retreats 2 | . . 2 Traps | -11 -10 -9 ------- Run | Yrd Mat Mat Traps Triggered . | . . . Indirectly . | . . . Trap Hack Attempts . | . . . Triggered . | . . . Disarmed 1 | . . 1 Reprogrammed . | . . . Reused . | . . . Traps Extracted . | . . . Installed . | . . . Triggered . | . . . Machines | -11 -10 -9 ---------- Run | Yrd Mat Mat Machines Disabled 6 | . 4 2 Max in Single Turn 2 | . 2 1 Machines Repaired . | . . . Machines Dismantled . | . . . Machines Sabotaged . | . . . Overloaded Fab Kills . | . . . Hacking | -11 -10 -9 --------- Run | Yrd Mat Mat Machines Accessed 5 | . 2 3 Terminals 5 | . 2 3 Fabricators . | . . . Repair Stations . | . . . Recycling Units . | . . . Scanalyzers . | . . . Garrison Access . | . . . Total Hacks 16 | . 6 10 Successful 7 | . 2 5 Failed 9 | . 4 5 Catastrophic 1 | . . 1 Database Lockouts . | . . . Manual . | . . . Terminals 16 | . 6 10 Fabricators . | . . . Repair Stations . | . . . Recycling Units . | . . . Scanalyzers . | . . . Garrison Access . | . . . Terminal Hacks 7 | . 2 5 Emergency Access Points 2 | . . 2 Locate Traps 2 | . 1 1 Disarm Traps 1 | . . 1 Investigation Status 1 | . 1 . Zone Layout 1 | . . 1 Fabricator Hacks . | . . . Repair Station Hacks . | . . . Recycling Unit Hacks . | . . . Scanalyzer . | . . . Garrison Access Hacks . | . . . Unauthorized Hacks . | . . . Terminals . | . . . Fabricators . | . . . Repair Stations . | . . . Recycling Units . | . . . Scanalyzers . | . . . Garrison Access . | . . . Data Cores Recovered . | . . . Used . | . . . Hacking Detections 4 | . 1 3 Full Trace Events 2 | . . 2 Feedback Events . | . . . Feedback Blocked . | . . . Robot Schematics Acquired . | . . . Robots Built . | . . . Authchips . | . . . Time . | . . . Total Robot Build Rating . | . . . Part Schematics Acquired . | . . . Parts Built . | . . . Authchips . | . . . Time . | . . . Total Part Build Rating . | . . . Parts Repaired . | . . . Time . | . . . Parts Recycled . | . . . Recycled Matter . | . . . Retrieved Matter . | . . . Retrieved Components . | . . . Parts Scanalyzed . | . . . Part Schematics Acquired . | . . . Parts Damaged . | . . . Bothacking | -11 -10 -9 ------------ Run | Yrd Mat Mat Used RIF Installer . | . . . Robots Hacked . | . . . Non-combat . | . . . Combat . | . . . Robot Hacks Applied . | . . . Relay Couplers Released . | . . . Fabnet Peak Effective % . | . . . Robots Rewired . | . . . Allies Hacked . | . . . Hacks Repelled . | . . . Allies | -11 -10 -9 -------- Run | Yrd Mat Mat Total Allies . | . . . Largest Group . | . . . Highest-Rated Group . | . . . Highest-Rated Ally . | . . . Total Orders . | . . . Ally Attacks . | . . . Total Damage . | . . . Kills . | . . . Allies Corrupted . | . . . Allies Melted . | . . . Intel | -11 -10 -9 ------- Run | Yrd Mat Mat Robot Analysis Total . | . . . Derelict Logs Recovered . | . . . Drone Launches . | . . . Drone Recoveries . | . . . Exploration | -11 -10 -9 ------------- Run | Yrd Mat Mat Turns Passed 1036 | 34 417 585 Spaces Moved 857 | 30 332 495 Core 9 | 9 . . Treads . | . . . Legs . | . . . Wheels 848 | 21 332 495 Hover . | . . . Flight . | . . . Fastest Speed 50 | 50 90 90 Average Speed 93 | 78 93 94 Slowest Speed 115 | 90 100 115 Overloaded Moves . | . . . Propulsion Burnouts . | . . . Robots Hopped . | . . . Cave-ins Triggered . | . . . Exploration Rate (%) 36 | 3 64 41 Regions Visited 2 Branch Regions . Pre-discovered Areas . | . . . Known Exits Taken . | . . . Unknown Exits Taken 2 | 1 1 . Scrap Searched . | . . . Spaces Dug . | . . . Terrain Destroyed 78 | . 29 49 Melee . | . . . Projectile 1 | . . 1 AOE 77 | . 29 48 Terrain Rammed . | . . . Walls Destroyed . | . . . Machines Disabled . | . . . Actions | -11 -10 -9 --------- Run | Yrd Mat Mat Total 977 | 40 384 553 Wait 10 | . 6 4 Move 855 | 29 331 495 Hop . | . . . Pick Up 22 | 6 9 7 Fast Attach . | . . . Attach 14 | 5 3 6 Detach . | . . . Swap 9 | . 4 5 Drop 3 | . 1 2 Fire 62 | . 28 34 Melee . | . . . Ram 2 | . 2 . Kick . | . . . Crush . | . . . Escape Stasis . | . . . Rewire . | . . . Trap . | . . . Miscellaneous . | . . . Route ------- -11/Scrapyard -10/Materials (discovered 2 exits: *Mat / [*Min]) -9/Materials (discovered 1 exit: [*Min]) History --------- Turn | Location | Event 24 | -11/Scrapyard | Discovered new exit (range 12) 35 | -11/Scrapyard | Entered Materials 102 | -10/Materials | Discovered new exit (range 16) 107 | -10/Materials | Destroyed 7 combat bots 317 | -10/Materials | Build established: Mutant 373 | -10/Materials | Discovered new exit (range 15) 452 | -10/Materials | Entered another Materials area 452 | -9/Materials | Evolved 2 slots: Utility x1, Weapon x1 707 | -9/Materials | Lost 3 parts (1n1u1w) 711 | -9/Materials | Destroyed 16 combat bots 852 | -9/Materials | First assault squad dispatched 968 | -9/Materials | Build established: Gunner 1000 | -9/Materials | Discovered new exit (range 11) 1030 | -9/Materials | Core integrity fell below 50% 1037 | -9/Materials | Self-destructed Last Messages --------------- G-47 Trooper unfolds itself. G-34 Mercenary unfolds itself. L-31 Rogue unfolds itself. I-25 Savior unfolds itself. EXIT=FOUND T-07 Excavator is excavating. U-05 Engineer builds a Wall. K-01 Serf cleans the Machine. T-07 Excavator is excavating. K-01 Serf cleans the Machine. U-05 Engineer lays Concrete. Particle Cannon destroyed. U-05 Engineer lays Concrete. U-05 Engineer builds a Wall. Wheel destroyed. Particle Cannon severed. Cooling System destroyed. Com. Wheel destroyed. Particle Cannon destroyed. Imp. Ion Engine severed. Map ----- +----------------------------------------------------+ | ????????????????????? """ == #??# | | ????????????????? """"" = #??# | | ????????????????? """"" ! ! #### | | ????????????????"T" """"" %!!! | | ?????????????????"" """ | | ???????????????? [ % | | ???????????????????? | | ??????????????????????????## % | | ???????????????????????????#% ########### #### | | ???????????????????????????# #????????## % ## | | ???????????????????????????# #????????## ## | | ???????????????????????????# ######???## % ## | | ???????????????????????????# # ???## ## | | ???????????????????????????# # !== ??## ## | | ???????????????????????????# # !== ???# ## | | ???????????????????????##??# # !== ??## #### | | ??????????????????????# #?# # #### # | | ??????????????######### ?# # # # | | ??????????##### ## ### ###+####### % + | | ????????? k % #[ | | ????????? < % # | | ????????? u * #### | | ?????????????##" "##g#### ##+######## | | ??????????????#" !"| ?# #?# # # | | ???????????????"?""???# l #?# ## # | | ??????????????????????# @#?# ## ########## | | ??????????????????????# *#?# ## #??????# | | ??????????????????????# #?? # #??????# " | | ??????????????????????# #??/ # #??????# " | | ??????????????????????# #?? ########??????# " | | ??????????????????????#+###?? #?????????????# " | | ??????????????????????# #????? #?????????????# " | | ??????????????????????# ????? ###?????????????# " | | ??????????????????????+ ????? #???????????????# " | | ??????????????????????# ??????????????????????# | | ??????????????????????# ??????????????????????### | | ??????????????????????# ?????????????????????# | | ??????????????????????# ?????????????????????# | | ??????????????????????? ?????????????????????# | | ??????????????????????? ?????????????????????# | | ??????????????????????? #????????????????????## | | ??????????????????????? #??????????????######## | | ??????????????????????? +??????????????# ## | | ??????????????????????? #??????????????# ## | | ??????????????????????? ???????????????# ##+ | | ?????????????????????????????????????????# """ # | | ?????????????????????????????????????????# """ # | | ?????????????????????????????????????????# """ # | | ?????????????????????????????????????????# """ # " | | ?????????????????????????????????????????# """ # " | +----------------------------------------------------+ Best States ------------- Heat Dissipation 50 Energy Generation 12 Energy Capacity 265 Matter Stores 300 Matter Capacity 300 Sight Range 16 Terrain Scan Density 10 Evasion (%) 50 Item Schematics ----------------- None Robot Schematics ------------------ None Fabricated ------------ Nothing Alien Tech Used ----------------- None Achievements -------------- Significant Disruption Challenges ------------ None Game ------ Seed SurveybotTerrainSuperbattery Manual? 0 Play Time 00:16:51 Cumulative 6.4 hours Start 2024.04.17 @ 17:14:21 End 2024.04.17 @ 17:29:15 Sessions 1 Manual Loads 0 Difficulty Rogue Special Mode None Game No. 8 Rogue 6 Adventurer 2 Explorer 0 Win Type - Total 0 Types 0/0/0/0/0/0/0/0/0 Lore% 16 Gallery% 10 Achievement% 13 Wizard Run 0 Options --------- Layout 1 ASCII 0 Keyboard 0 Movement Mouse Keybinds 0 Fullscreen 1 Font 24/Smallcaps Map View 50x40 Zoom Use 0% Tactical HUD 0 Map Filters NONE Filters NONE Steam 1 RUN: e968e637-94d3-4e9f-bb7a-d2060778dd37